bitfinex/quotes_SOLUSD_20251002
["timestamp","ask_amount","ask_price","bid_price","bid_amount"]
[1759364924613,4.71305582,221.58,221.5,4.51467268]
[1759364924803,0.2,221.58,221.5,4.51467268]
[1759364925114,0.66,221.57,221.5,5.21467268]
[1759364927209,0.66,221.56,221.5,5.21467268]
[1759364928195,0.66,221.56,221.5,4.51467268]
[1759364929226,0.66,221.55,221.5,4.51467268]
[1759364929806,0.66,221.55,221.5,5.21467268]
[1759364930210,0.66,221.55,221.5,0.7]
[1759364930429,0.66,221.54,221.46,0.7]
[1759364930627,0.66,221.54,221.42,11.29051722]
[1759364930628,0.66,221.54,221.44,0.7]
[1759364930845,0.66,221.54,221.44,5.21345401]
[1759364931002,0.66,221.53,221.44,0.7]
[1759364931332,4.51426507,221.52,221.45,4.51569202]
[1759364931503,0.66,221.51,221.44,5.21588925]
[1759364933829,0.72,221.5,221.44,4.51588925]
[1759364934027,0.72,221.49,221.42,26.01610247]
[1759364934214,4.51450426,221.51,221.42,26.01610247]
[1759364934215,0.72,221.48,221.42,5.21610247]
[1759364934421,0.72,221.48,221.42,4.51610247]
[1759364934919,0.72,221.48,221.41,4.80083097]
[1759364935114,0.72,221.48,221.41,5.50083097]
[1759364935427,4.51504332,221.49,221.42,0.7]
[1759364935428,0.72,221.49,221.42,0.7]
[1759364936636,4.5142922,221.52,221.42,0.7]
[1759364936820,0.72,221.5,221.43,4.51609989]
[1759364937019,0.72,221.5,221.43,5.21609989]
[1759364937446,0.72,221.49,221.43,4.51609989]
[1759364937742,0.72,221.48,221.39,5.21672926]
[1759364938050,0.72,221.47,221.39,4.51672926]
[1759364938244,0.72,221.46,221.37,37.43712343]
[1759364938542,21.52,221.45,221.37,5.21712343]
[1759364938742,4.51609989,221.43,221.37,5.21712343]
[1759364938930,5.23609989,221.43,221.37,5.21712343]
[1759364940041,21.52,221.45,221.37,5.21712343]
[1759364940247,0.72,221.44,221.37,5.21712343]
[1759364942631,5.23590943,221.44,221.37,0.7]
[1759364943447,16.52564931,221.44,221.34,5.2179362]
[1759364943758,0.72,221.43,221.34,37.4179362]
[1759364944042,0.72,221.42,221.34,32.9]
[1759364944249,5.23657399,221.41,221.32,0.7]
[1759364944428,26.03657399,221.41,221.32,0.7]
[1759364945048,10.87647521,221.4,221.32,0.7]
[1759364945248,0.72,221.39,221.3,37.41875282]
[1759364945556,0.72,221.38,221.3,37.41875282]
[1759364946441,10.87647521,221.4,221.3,37.41875282]
[1759364946643,5.23691584,221.39,221.3,37.41875282]
[1759364947157,0.72,221.38,221.3,37.41875282]
[1759364947545,5.23739861,221.37,221.3,37.41875282]
[1759364947741,0.72,221.36,221.3,4.51875282]
[1759364952249,5.2375331,221.36,221.3,4.51875282]
[1759364952652,0.72,221.36,221.3,4.51875282]
[1759364953049,0.72,221.35,221.29,0.7]
[1759364953248,0.72,221.35,221.26,0.2]
[1759364953249,10.87647521,221.34,221.26,0.2]
[1759364953450,0.72,221.33,221.26,0.2]
[1759364954065,20.8,221.31,221.26,0.2]
[1759364954263,5.23875282,221.3,221.26,0.2]
[1759364955666,10.87647521,221.29,221.26,0.2]
[1759364956364,5.23924986,221.28,221.26,0.2]
[1759364956743,7.30916274,221.28,221.26,0.2]
[1759364956936,5.23924986,221.28,221.26,0.2]
[1759364957136,10.87647521,221.27,221.26,0.2]
[1759364957559,2.78991288,221.27,221.26,0.2]
[1759364957931,13.66638809,221.27,221.26,0.2]
[1759364958433,18.18575357,221.27,221.26,0.2]
[1759364959156,18.18575357,221.27,221.25,0.2]
[1759364959157,143.77647521,221.26,221.25,0.2]
[1759364959334,45.43071123,221.26,221.25,0.2]
[1759364959530,46.15071123,221.26,221.25,0.2]
[1759364959746,10.87647521,221.22,221.21,0.2]
[1759364959951,12.94638809,221.22,221.21,0.2]
[1759364960174,13.66638809,221.22,221.21,0.2]
[1759364960382,18.18677503,221.22,221.21,0.2]
[1759364961567,20.54101105,221.22,221.21,1e-08]
[1759364962075,52.74101105,221.22,221.21,1e-08]
[1759364962274,0.28432314,221.21,221.2,1e-08]
[1759364962483,19.8212154,221.21,221.2,1e-08]
[1759364962667,20.5112154,221.21,221.2,1e-08]
[1759364963987,20.5112154,221.21,221.06,0.67]
[1759364963988,31.67647521,221.17,221.06,0.67]
[1759364964167,64.16079835,221.17,221.06,0.67]
[1759364964369,66.92071123,221.17,221.06,5.1936521]
[1759364964572,66.92071123,221.17,221.06,0.67]
[1759364965674,71.4421201,221.17,221.06,0.67]
[1759364966292,71.4421201,221.17,221.07,0.67]
[1759364969258,71.4421201,221.17,221.06,4.5236121]
[1759364969581,71.4421201,221.17,221.08,0.67]
[1759364969758,69.37220722,221.17,221.07,0.67]
[1759364969958,69.37220722,221.17,221.08,0.67]
[1759364969959,71.4421201,221.17,221.08,0.67]
[1759364971284,71.4421201,221.17,221.09,0.67]
[1759364971583,94.2821201,221.17,221.09,0.67]
[1759364972080,71.4421201,221.17,221.09,0.67]
[1759364972298,71.4421201,221.17,221.03,11.31034401]
[1759364972299,71.4421201,221.17,221.1,0.67]
[1759364972588,71.4421201,221.17,221.11,0.67]
[1759364973084,71.4421201,221.17,221.1,0.67]
[1759364973267,71.4421201,221.17,221.03,11.31034401]
[1759364973268,71.4621201,221.17,221.08,0.67]
[1759364973990,71.4621201,221.17,221.1,0.67]
[1759364974556,38.95779696,221.17,221.04,11.30994256]
[1759364974764,70.48779696,221.17,221.13,0.67]
[1759364974968,71.4621201,221.17,221.1,0.67]
[1759364975191,70.48779696,221.17,221.13,0.67]
[1759364975397,70.48779696,221.17,221.14,0.67]
[1759364975572,49.68779696,221.17,221.14,0.67]
[1759364975769,4.52107932,221.19,221.16,0.77]
[1759364975979,15.39703871,221.22,221.16,0.77]
[1759364976198,12.94638809,221.2,221.16,0.77]
[1759364976398,34.28991288,221.19,221.16,0.77]
[1759364977096,32.22,221.19,221.17,0.67]
[1759364977777,32.22,221.19,221.18,0.67]
[1759364977977,4.5199783,221.24,221.18,0.67]
[1759364978175,43.09647521,221.23,221.18,0.67]
[1759364978478,20.8,221.2,221.18,0.67]
[1759364978695,32.22,221.23,221.18,0.67]
[1759364978885,32.22,221.23,221.18,5.1911865]
[1759364979084,10.87647521,221.26,221.19,0.67]
[1759364979288,6.58928778,221.27,221.19,0.67]
[1759364979289,32.2,221.25,221.19,0.67]
[1759364980196,32.2,221.25,221.19,5.19081928]
[1759364980502,32.2,221.25,221.2,0.67]
[1759364981271,2.06991288,221.28,221.2,0.67]
[1759364981272,32.2,221.28,221.2,0.67]
[1759364981478,53.0,221.28,221.2,0.67]
[1759364981898,55.06991288,221.28,221.2,0.67]
[1759364982100,12.94638809,221.27,221.2,0.67]
[1759364982300,4.51956973,221.26,221.2,0.67]
[1759364982979,20.8,221.24,221.2,0.67]
[1759364983174,20.8,221.24,221.17,4.52140818]
[1759364983393,20.8,221.24,221.18,0.67]
[1759364984180,25.32004158,221.24,221.18,0.67]
[1759364986703,25.32004158,221.24,221.18,5.19117312]
[1759364986897,20.8,221.24,221.19,0.67]
[1759364987606,20.8,221.24,221.2,0.67]
[1759364987807,20.8,221.24,221.18,5.19117312]
[1759364989210,25.31999871,221.24,221.18,5.19117312]
[1759364991389,20.8,221.24,221.18,5.19117312]
[1759364992207,20.8,221.24,221.18,4.52117312]
[1759364992398,58.18952487,221.27,221.19,0.67]
[1759364992597,0.69,221.26,221.19,0.67]
[1759364993213,0.69,221.26,221.2,4.52079566]
[1759364994097,0.69,221.26,221.2,5.22079566]
[1759364994304,22.86991288,221.21,221.16,0.1]
[1759364994505,2.06991288,221.19,221.16,0.1]
[1759364994898,0.72,221.18,221.16,0.1]
[1759364995209,5.24126496,221.18,221.16,0.1]
[1759364995713,0.72,221.18,221.16,0.1]
[1759364997007,4.5204027,221.22,221.16,0.1]
[1759364997181,20.8,221.23,221.17,0.7]
[1759364997388,20.8,221.23,221.17,5.22121875]
[1759364997598,25.32018275,221.23,221.17,5.22121875]
[1759364997805,0.72,221.22,221.16,0.1]
[1759364997997,0.72,221.22,221.16,4.62159112]
[1759364998888,0.57334343,221.22,221.16,4.62159112]
[1759364999115,0.57334343,221.22,221.16,5.32159112]
[1759364999907,5.09374856,221.22,221.16,0.8]
[1759365000086,4.52040513,221.22,221.16,0.1]
[1759365000510,45.12638809,221.21,221.16,0.1]
[1759365000944,0.72,221.2,221.16,0.1]
[1759365001219,32.18,221.21,221.16,0.8]
[1759365001386,37.42059654,221.21,221.16,0.8]
[1759365002203,32.18,221.21,221.17,0.7]
[1759365002394,4.51998967,221.24,221.18,0.7]
[1759365003303,170.3197844,221.25,221.19,4.52100004]
[1759365003811,0.72,221.24,221.16,5.3216091]
[1759365004002,0.72,221.23,221.16,5.3216091]
[1759365004516,180.89921942,221.25,221.16,5.3216091]
[1759365004814,23.58991288,221.22,221.16,0.1]
[1759365005000,52.98,221.21,221.16,0.1]
[1759365005388,5.2408438,221.2,221.16,0.1]
[1759365005693,52.98,221.21,221.16,0.1]
[1759365006001,0.72,221.19,221.16,0.1]
[1759365006204,0.72,221.18,221.16,0.1]
[1759365006916,23.58991288,221.17,221.16,0.1]
[1759365007409,26.04140887,221.17,221.16,0.1]
[1759365007821,38.98779696,221.17,221.16,0.1]
[1759365008319,40.15945582,221.17,221.16,0.1]
[1759365009104,43.19283565,221.17,221.16,0.1]
[1759365009304,40.15945582,221.17,221.16,0.1]
[1759365010099,43.19292028,221.17,221.16,0.1]
[1759365010308,43.47724342,221.17,221.16,1e-08]
[1759365012314,10.87647521,221.12,221.03,0.7]
[1759365012518,36.12157174,221.11,221.03,0.7]
[1759365012828,14.11804695,221.1,221.03,0.7]
[1759365013125,32.16,221.09,220.99,4.52509163]
[1759365013319,0.72,221.08,221.01,0.7]
[1759365013901,4.5234541,221.07,221.01,5.22467629]
[1759365014124,4.5234541,221.07,221.02,0.7]
[1759365014927,4.5234541,221.07,220.98,4.5252964]
[1759365015142,4.5234541,221.07,221.02,0.7]
[1759365015143,5.2434541,221.07,221.02,0.7]
[1759365015646,0.72,221.06,221.0,0.7]
[1759365015993,4.52328836,221.08,221.0,5.22477542]
[1759365016122,0.72,221.07,221.0,0.7]
[1759365016516,0.72,221.07,220.97,4.52550119]
[1759365016831,0.72,221.07,220.98,0.7]
[1759365016832,10.87647521,221.05,220.98,0.7]
[1759365017039,11.59647521,221.05,220.98,0.7]
[1759365017543,14.83804695,221.05,220.96,5.22567821]
[1759365017712,0.72,221.04,220.96,5.22567821]
[1759365017910,4.52427272,221.03,220.96,5.22567821]
[1759365018110,4.52427272,221.03,220.96,0.7]
[1759365018346,0.72,221.02,220.94,0.7]
[1759365018639,3.24157174,221.0,220.93,0.1]
[1759365018809,0.72,221.0,220.93,4.62631371]
[1759365019010,3.96157174,221.0,220.93,5.32631371]
[1759365019214,3.96157174,221.0,220.93,0.8]
[1759365019417,24.76157174,221.0,220.93,0.8]
[1759365019630,24.76157174,221.0,220.93,5.32626445]
[1759365019842,21.52,221.0,220.93,5.32626445]
[1759365020155,0.72,220.99,220.93,4.62624138]
[1759365020440,0.72,220.99,220.93,0.1]
[1759365021248,0.72,220.99,220.93,4.62616682]
[1759365021419,0.72,220.99,220.93,0.1]
[1759365021815,3.24157174,220.96,220.93,0.1]
[1759365022151,7.76768742,220.94,220.93,0.1]
[1759365022358,50.82416263,220.94,220.93,0.1]
[1759365022554,51.50416263,220.94,220.93,0.1]
[1759365024425,48.26259089,220.94,220.93,0.1]
[1759365024623,51.50416263,220.94,220.93,0.1]
[1759365024821,51.78848577,220.94,220.93,0.1]
[1759365026249,31.67647521,220.9,220.77,0.65]
[1759365026452,3.24157174,220.83,220.77,0.65]
[1759365026743,35.42157174,220.85,220.77,0.65]
[1759365027128,35.42157174,220.85,220.77,5.17957563]
[1759365027338,35.42157174,220.85,220.78,0.65]
[1759365027850,3.24157174,220.83,220.78,0.65]
[1759365028233,24.75157174,220.82,220.76,0.65]
[1759365028730,24.75157174,220.82,220.75,4.53001132]
[1759365028923,3.24157174,220.8,220.74,5.18021608]
[1759365029126,3.24157174,220.8,220.73,1.55]
[1759365029327,3.24157174,220.79,220.73,1.55]
[1759365029534,24.04157174,220.77,220.73,1.55]
[1759365030229,0.71,220.76,220.73,1.55]
[1759365030621,56.93157174,220.76,220.73,1.55]
[1759365030822,3.24157174,220.74,220.73,1.55]
[1759365031023,3.95157174,220.74,220.73,1.55]
[1759365033238,14.82804695,220.74,220.73,1.55]
[1759365034631,15.11237009,220.74,220.73,1.55]
[1759365036350,47.02804695,220.74,220.73,1.55]
[1759365036655,14.11804695,220.74,220.73,1.55]
[1759365036838,47.02804695,220.74,220.73,1.55]
[1759365037248,53.0,220.74,220.73,1.55]
[1759365037448,20.8,220.74,220.73,1.55]
[1759365037961,32.2,220.75,220.73,1.55]
[1759365038509,13.55066218,220.86,220.73,1.55]
[1759365038510,5.24124871,220.82,220.74,0.65]
[1759365038763,20.8,220.78,220.74,0.65]
[1759365038945,43.07647521,220.81,220.74,0.65]
[1759365039141,3.95157174,220.8,220.73,1.55]
[1759365039355,3.95157174,220.79,220.73,1.55]
[1759365039551,20.8,220.78,220.73,1.55]
[1759365039769,0.71,220.77,220.73,1.55]
[1759365039938,3.24157174,220.75,220.73,1.55]
[1759365040136,0.71,220.75,220.73,1.55]
[1759365040441,53.0,220.78,220.73,1.55]
[1759365040442,53.71,220.78,220.73,1.55]
[1759365040641,53.71,220.78,220.73,2.2]
[1759365040842,53.0,220.78,220.73,1.55]
[1759365041044,20.8,220.77,220.74,0.65]
[1759365041365,32.38647521,220.81,220.75,0.65]
[1759365041558,12.03885872,220.84,220.76,4.52980612]
[1759365041747,53.0,220.83,220.77,0.65]
[1759365041947,32.2,220.83,220.77,0.65]
[1759365042560,32.2,220.87,220.77,0.65]
[1759365042944,32.91,220.87,220.77,0.65]
[1759365043358,20.8,220.84,220.77,0.65]
[1759365043661,20.8,220.84,220.78,4.52939577]
[1759365043962,32.91,220.87,220.79,0.65]
[1759365044169,20.8,220.84,220.79,0.65]
[1759365044571,20.8,220.84,220.8,0.65]
[1759365045454,32.2,220.87,220.82,4.52857531]
[1759365045792,14.61537403,220.9,220.82,4.52857531]
[1759365045793,0.71,220.89,220.83,0.65]
[1759365045952,0.71,220.89,220.82,4.52857531]
[1759365045953,20.8,220.87,220.8,4.52878332]
[1759365046178,21.51,220.87,220.81,0.65]
[1759365046381,20.8,220.87,220.81,0.65]
[1759365046715,11.37380229,220.9,220.81,0.93432314]
[1759365046901,11.37380229,220.9,220.83,0.28432314]
[1759365047216,11.37380229,220.9,220.84,0.65]
[1759365047577,11.37380229,220.9,220.85,4.52796015]
[1759365047777,12.08380229,220.9,220.85,4.52796015]
[1759365048194,11.37380229,220.9,220.86,0.65]
[1759365048993,11.37380229,220.9,220.87,0.65]
[1759365049822,11.37380229,220.9,220.87,5.17750587]
[1759365049997,11.37380229,220.9,220.87,4.52750587]
[1759365051715,11.37380229,220.9,220.85,5.17781387]
[1759365051895,11.37380229,220.9,220.86,0.65]
[1759365052506,11.37380229,220.9,220.87,0.65]
[1759365052982,11.37380229,220.9,220.86,13.60081604]
[1759365053185,11.37380229,220.9,220.86,0.65]
[1759365053576,11.37380229,220.9,220.85,15.84771425]
[1759365053812,11.37380229,220.9,220.88,4.52734516]
[1759365053989,11.37380229,220.9,220.88,5.21734516]
[1759365054403,11.37380229,220.9,220.89,0.69]
[1759365054987,0.69,220.97,220.89,0.69]
[1759365055190,0.69,220.97,220.89,0.97432314]
[1759365055411,0.69,220.96,220.89,0.97432314]
[1759365055904,0.69,220.98,220.9,16.53427342]
[1759365056108,3.00268624,221.0,220.91,0.97432314]
[1759365056415,0.69,221.03,220.92,0.69]
[1759365056701,3.00800581,221.04,220.94,0.28432314]
[1759365056883,4.52260054,221.12,220.94,0.28432314]
[1759365056884,3.00800581,221.1,220.95,0.69]
[1759365057086,3.24157174,221.06,220.96,32.18]
[1759365057319,0.69,221.05,220.97,0.69]
[1759365057503,0.69,221.05,220.97,0.97432314]
[1759365057706,0.69,221.07,220.98,0.69]
[1759365057894,0.69,221.09,221.0,0.28432314]
[1759365058102,0.69,221.09,221.01,0.69]
[1759365058406,0.69,221.09,221.0,0.28432314]
[1759365058702,0.69,221.09,221.01,0.69]
[1759365059311,0.69,221.09,221.01,32.87]
[1759365059712,0.69,221.09,221.01,0.69]
[1759365060021,0.69,221.08,221.01,37.39459568]
[1759365060310,0.69,221.07,221.01,4.52459568]
[1759365060512,0.69,221.06,221.01,4.52459568]
[1759365060818,0.69,221.05,220.99,4.52494944]
[1759365060991,0.69,221.08,221.0,0.69]
[1759365061202,0.69,221.08,220.99,4.52494944]
[1759365061405,3.93157174,221.07,220.99,4.52494944]
[1759365061638,3.93157174,221.06,220.99,4.52494944]
[1759365061797,3.93157174,221.05,220.98,4.52527353]
[1759365061998,0.69,221.04,220.97,15.83925418]
[1759365062419,0.69,221.04,220.97,4.52550119]
[1759365062996,0.69,221.04,220.97,5.21550119]
[1759365063203,0.69,221.07,220.98,0.69]
[1759365063419,3.69800581,221.1,220.98,21.77432314]
[1759365063597,0.69,221.09,220.99,32.85]
[1759365063795,0.69,221.09,221.0,32.16]
[1759365063997,0.69,221.08,221.01,4.52468214]
[1759365064298,0.69,221.07,221.01,4.52468214]
[1759365066221,0.69,221.07,221.0,15.83710406]
[1759365066734,20.8,221.1,221.01,0.69]
[1759365066907,21.49,221.1,221.01,0.69]
[1759365067225,24.73157174,221.1,221.01,0.69]
[1759365067608,21.49,221.1,221.01,0.69]
[1759365067800,3.24157174,221.09,221.0,15.83710406]
[1759365068002,0.69,221.08,221.0,47.99710406]
[1759365068334,0.69,221.07,221.0,15.83710406]
[1759365068507,0.69,221.06,221.0,15.83710406]
[1759365068740,3.24157174,221.04,220.97,4.52550119]
[1759365069050,0.69,221.05,220.9,5.21693526]
[1759365069051,3.24157174,220.99,220.9,5.21693526]
[1759365069242,3.93157174,220.98,220.9,5.21693526]
[1759365069752,3.93157174,220.97,220.9,4.52693526]
[1759365069955,0.69,220.96,220.9,4.52693526]
[1759365070147,0.69,220.96,220.89,4.5271402]
[1759365070342,0.69,220.95,220.89,4.5271402]
[1759365071162,2.07791688,220.97,220.89,15.84499071]
[1759365071460,0.69,220.97,220.89,15.84499071]
[1759365071751,0.69,220.97,220.9,0.69]
[1759365072158,2.76791688,220.97,220.88,4.52734516]
[1759365072380,2.07791688,220.95,220.88,4.52734516]
[1759365072568,2.76791688,220.94,220.85,36.68796015]
[1759365072874,0.69,220.93,220.85,36.68796015]
[1759365073180,0.69,220.92,220.85,36.68796015]
[1759365073558,2.07791688,220.93,220.84,0.69]
[1759365073774,2.07791688,220.93,220.8,11.32218348]
[1759365073775,2.07791688,220.89,220.81,5.21878039]
[1759365073976,0.69,220.88,220.81,5.21878039]
[1759365074157,20.8,220.9,220.81,16.54073138]
[1759365074557,11.89866825,220.91,220.82,0.69]
[1759365074961,11.20866825,220.91,220.82,0.97432314]
[1759365075162,11.20866825,220.91,220.83,0.69]
[1759365076362,11.20866825,220.91,220.84,4.52816518]
[1759365077179,11.20866825,220.91,220.84,15.84857814]
[1759365078177,11.20866825,220.91,220.85,0.69]
[1759365078569,11.20866825,220.91,220.86,15.84714297]
[1759365079278,11.20866825,220.91,220.87,0.69]
[1759365079481,11.20866825,220.91,220.86,15.84714297]
[1759365079670,11.20866825,220.91,220.88,0.69]
[1759365079868,11.20866825,220.91,220.9,0.28432314]
[1759365080069,0.69,221.01,220.9,0.97432314]
[1759365080379,11.41580534,221.02,220.93,0.28432314]
[1759365080581,11.41580534,221.02,220.94,48.02140489]
[1759365080764,12.10580534,221.02,220.94,48.02140489]
[1759365081090,11.41580534,221.02,220.95,0.97432314]
[1759365081278,11.41580534,221.02,220.96,0.72]
[1759365082392,11.41580534,221.02,220.94,70.65198332]
[1759365082393,0.65,221.01,220.94,15.84140489]
[1759365082573,0.65,221.0,220.94,15.84140489]
[1759365082770,11.41580534,221.02,220.94,16.56140489]
[1759365083368,11.41580534,221.02,220.95,1.00432314]
[1759365083571,11.41580534,221.02,220.95,0.28432314]
[1759365083768,11.41580534,221.02,220.96,0.72]
[1759365084060,11.41580534,221.02,220.94,15.84140489]
[1759365084266,11.41580534,221.02,220.95,32.2]
[1759365084267,0.66,221.01,220.95,32.2]
[1759365084681,0.66,221.01,220.96,4.52570601]
[1759365084986,0.66,221.0,220.96,4.52570601]
[1759365085566,0.66,220.99,220.96,4.52570601]
[1759365085885,11.41580534,221.02,220.96,4.52570601]
[1759365085886,12.07580534,221.02,220.96,4.52570601]
[1759365086885,0.66,221.01,220.94,32.2]
[1759365087069,0.66,221.0,220.93,32.2]
[1759365087674,0.66,221.0,220.94,0.72]
[1759365088375,0.66,221.0,220.92,15.84283902]
[1759365088573,15.94030862,221.02,220.92,4.52652543]
[1759365088574,0.66,220.99,220.92,4.52652543]
[1759365088899,21.46,220.98,220.9,4.52693526]
[1759365089085,0.66,220.97,220.9,4.52693526]
[1759365089393,0.66,220.96,220.9,4.52693526]
[1759365090194,0.66,220.96,220.89,15.84483857]
[1759365091294,0.66,220.95,220.89,36.7071402]
[1759365092091,0.66,220.95,220.89,48.02499071]
[1759365092705,20.8,220.98,220.9,0.72]
[1759365092910,3.02834655,221.01,220.92,20.8]
[1759365093074,12.07580534,221.02,220.92,20.8]
[1759365093075,15.1086862,221.02,220.93,1.00432314]
[1759365093276,12.07580534,221.02,220.94,32.18]
[1759365094192,12.07580534,221.02,220.95,4.52591083]
[1759365094780,12.07580534,221.02,220.95,15.84068792]
[1759365096204,12.07580534,221.02,220.97,4.52550119]
[1759365096402,0.66,221.01,220.97,4.52550119]
[1759365096584,0.66,221.0,220.97,4.52550119]
[1759365096788,0.66,220.99,220.95,32.16]
[1759365096982,11.41580534,221.02,220.95,32.16]
[1759365097194,11.41580534,221.02,220.96,0.72]
[1759365097804,12.07580534,221.02,220.95,32.16]
[1759365098102,0.66,221.01,220.93,32.16]
[1759365098306,0.66,221.0,220.93,32.16]
[1759365098516,11.41580534,221.02,220.94,0.72]
[1759365098680,11.41580534,221.02,220.94,1.00432314]
[1759365099707,11.41580534,221.02,220.95,0.72]
[1759365099907,11.41580534,221.02,220.97,0.28432314]
[1759365100206,11.41580534,221.02,220.99,15.83782071]
[1759365100585,11.41580534,221.02,221.0,0.72]
[1759365101197,11.41580534,221.02,220.99,15.83782071]
[1759365101601,11.41580534,221.02,221.0,32.2]
[1759365102502,11.41580534,221.02,221.01,4.52468214]
[1759365102713,11.41580534,221.02,221.01,37.44468214]
[1759365103293,11.41580534,221.02,221.01,37.72900528]
[1759365103489,0.66,221.09,221.01,49.04071063]
[1759365105614,0.66,221.08,221.01,16.55638749]
[1759365105795,0.66,221.07,221.02,32.18]
[1759365106306,0.66,221.06,221.02,32.18]
[1759365106496,0.66,221.05,221.02,32.18]
[1759365106683,0.66,221.05,221.03,4.52427272]
[1759365107012,0.66,221.04,220.99,4.52509163]
[1759365107314,6.60096179,221.09,220.99,4.52509163]
[1759365107608,0.66,221.04,221.0,32.16]
[1759365107784,0.66,221.03,220.99,36.68509163]
[1759365108503,0.66,221.03,220.99,4.52509163]
[1759365108687,0.66,221.03,220.99,36.68509163]
[1759365108890,0.66,221.06,221.0,0.72]
[1759365109412,20.8,221.1,221.0,0.72]
[1759365109596,0.66,221.09,221.0,1.00432314]
[1759365109796,47.82645894,221.21,221.0,1.00432314]
[1759365109797,10.87647521,221.15,221.02,20.8]
[1759365109998,0.66,221.12,221.03,33.16432314]
[1759365110312,0.66,221.12,221.04,0.72]
[1759365110514,21.46,221.12,221.05,4.52386337]
[1759365110707,0.66,221.11,221.05,4.52386337]
[1759365111218,21.46,221.1,221.05,4.52386337]
[1759365111385,0.66,221.09,221.05,4.52386337]
[1759365111583,0.66,221.11,221.05,4.52386337]
[1759365111785,0.66,221.11,221.05,15.83352181]
[1759365112202,20.8,221.12,221.06,0.72]
[1759365112399,0.66,221.15,221.06,0.72]
[1759365112586,0.66,221.15,221.07,47.99208937]
[1759365112783,10.87647521,221.17,221.07,47.99208937]
[1759365112784,0.66,221.14,221.07,47.99208937]
[1759365113014,0.66,221.13,221.07,36.6834541]
[1759365113233,0.66,221.12,221.07,36.6834541]
[1759365113595,21.46,221.14,221.07,37.4034541]
[1759365113929,0.66,221.13,221.07,36.6834541]
[1759365114099,0.66,221.13,221.07,4.5234541]
[1759365114410,39.51479142,221.21,221.07,15.83208937]
[1759365114586,0.66,221.15,221.07,16.53208937]
[1759365116311,12.95439209,221.14,221.07,4.5234541]
[1759365116499,6.60034813,221.12,221.04,11.30999723]
[1759365116816,0.66,221.11,221.04,11.30999723]
[1759365117023,0.66,221.1,221.04,11.30999723]
[1759365117511,0.66,221.1,221.04,15.83406527]
[1759365117700,0.66,221.1,221.04,4.52406804]
[1759365117901,0.66,221.09,221.04,4.52406804]
[1759365118110,6.60062545,221.11,221.04,4.52406804]
[1759365118410,0.66,221.09,221.04,4.52406804]
[1759365118923,20.8,221.11,221.05,0.7]
[1759365119622,0.66,221.13,221.05,0.7]
[1759365119623,20.8,221.12,221.05,0.7]
[1759365121016,20.8,221.12,220.98,57.96811351]
[1759365121017,2.07791688,221.08,220.94,22.62986652]
[1759365121197,2.07791688,221.06,220.96,0.7]
[1759365121392,0.66,221.05,220.96,0.98432314]
[1759365121594,2.07791688,221.05,220.96,0.7]
[1759365121803,2.73791688,221.04,220.96,32.14]
[1759365122012,0.66,221.03,220.96,32.14]
[1759365122716,2.07791688,221.0,220.93,4.52613917]
[1759365122899,0.66,220.99,220.92,43.47597992]
[1759365123297,0.66,220.99,220.92,11.31597992]
[1759365123508,0.66,220.99,220.92,12.01597992]
[1759365123712,21.46,220.99,220.92,12.01597992]
[1759365123914,21.46,220.99,220.89,0.7]
[1759365123915,0.66,220.98,220.89,0.7]
[1759365124218,20.8,220.97,220.89,32.86]